bitfinex/quotes_SOLUSD_20250901
["timestamp","ask_amount","ask_price","bid_price","bid_amount"]
[1756720721870,21.40860897,201.53,201.52,0.12]
[1756720722078,61.15602702,201.53,201.52,0.12]
[1756720722277,66.11806741,201.53,201.52,0.12]
[1756720723982,62.56860897,201.53,201.52,0.12]
[1756720724298,19.99602702,201.53,201.52,0.12]
[1756720724508,61.11602702,201.53,201.52,0.12]
[1756720725302,19.99602702,201.53,201.52,0.12]
[1756720725487,61.11602702,201.53,201.52,0.12]
[1756720726570,66.07806741,201.53,201.52,0.12]
[1756720727485,69.62752585,201.53,201.52,0.12]
[1756720727888,66.07806741,201.53,201.52,0.12]
[1756720729793,19.99602702,201.53,201.52,0.12]
[1756720729997,61.13602702,201.53,201.52,0.12]
[1756720730702,60.39602702,201.53,201.52,0.12]
[1756720731089,61.11602702,201.53,201.52,0.12]
[1756720731284,19.13386545,201.53,201.52,0.12]
[1756720731595,63.87804445,201.53,201.52,0.12]
[1756720731799,64.69020602,201.53,201.52,0.12]
[1756720731983,55.52775558,201.53,201.52,0.12]
[1756720732298,63.49044502,201.53,201.52,0.12]
[1756720734536,69.12248541,201.53,201.52,0.12]
[1756720734684,26.58990346,201.53,201.52,0.12]
[1756720734885,64.22044502,201.53,201.52,0.12]
[1756720735180,23.04044502,201.53,201.52,0.12]
[1756720735386,64.20044502,201.53,201.52,0.12]
[1756720735600,60.65098658,201.53,201.52,0.12]
[1756720735822,23.04044502,201.53,201.52,0.12]
[1756720735984,64.20044502,201.53,201.52,0.12]
[1756720736181,69.16248541,201.53,201.52,0.12]
[1756720736780,68.49248541,201.53,201.52,0.12]
[1756720736981,63.53044502,201.53,201.52,0.12]
[1756720737192,22.37044502,201.53,201.52,0.12]
[1756720737392,63.53044502,201.53,201.52,0.12]
[1756720737779,69.16248541,201.53,201.52,0.12]
[1756720738217,69.16248541,201.53,201.48,0.12]
[1756720738218,39.59559401,201.49,201.48,0.12]
[1756720738380,89.37023948,201.49,201.48,0.12]
[1756720738801,90.04023948,201.49,201.48,0.12]
[1756720739200,0.14216157,201.48,201.47,0.1]
[1756720739404,17.95721402,201.48,201.47,0.1]
[1756720739590,21.85898415,201.48,201.47,0.1]
[1756720740194,17.28721402,201.48,201.47,0.1]
[1756720740411,22.2504858,201.48,201.47,0.1]
[1756720740600,58.34721402,201.48,201.47,0.1]
[1756720740794,63.9804858,201.48,201.47,0.1]
[1756720741410,43.28721402,201.46,201.45,0.12]
[1756720741596,84.32721402,201.46,201.45,0.12]
[1756720741794,84.99721402,201.46,201.45,0.12]
[1756720742386,89.96097853,201.46,201.45,0.12]
[1756720743013,43.28721402,201.46,201.45,0.12]
[1756720743292,84.28721402,201.46,201.45,0.12]
[1756720743722,43.28721402,201.46,201.45,0.12]
[1756720743916,84.26721402,201.46,201.45,0.12]
[1756720744294,58.32721402,201.46,201.45,0.12]
[1756720744488,63.29097853,201.46,201.45,0.12]
[1756720745622,65.95038553,201.46,201.45,0.12]
[1756720749719,69.49984397,201.46,201.45,0.12]
[1756720749928,13.73775558,201.44,201.35,0.72]
[1756720750106,3.54945844,201.36,201.33,4.9668526]
[1756720750304,40.98,201.35,201.33,4.9668526]
[1756720750546,3.54945844,201.36,201.33,4.9668526]
[1756720750710,40.96,201.35,201.34,0.72]
[1756720751617,13.59559401,201.34,201.25,12.42203076]
[1756720751835,44.50945844,201.33,201.26,17.39044021]
[1756720752020,44.50945844,201.33,201.27,3.54945844]
[1756720752337,3.54945844,201.33,201.28,0.72]
[1756720752509,3.54945844,201.33,201.28,4.26945844]
[1756720752712,40.94,201.32,201.29,0.72]
[1756720753016,40.92,201.31,201.3,4.96770988]
[1756720753213,40.92,201.31,201.3,5.68770988]
[1756720754023,40.92,201.31,201.3,0.72]
[1756720754507,40.98,201.31,201.3,0.72]
[1756720754728,44.52945844,201.31,201.29,0.12]
[1756720754911,3.54945844,201.3,201.29,0.84]
[1756720755308,44.52945844,201.31,201.29,0.84]
[1756720755607,40.98,201.31,201.29,0.84]
[1756720756006,3.54945844,201.3,201.29,0.12]
[1756720756431,3.54945844,201.3,201.29,0.84]
[1756720756909,3.54945844,201.3,201.29,5.80793062]
[1756720757314,44.52945844,201.31,201.29,5.80793062]
[1756720757537,44.52945844,201.31,201.3,0.72]
[1756720757834,44.48945844,201.31,201.3,0.72]
[1756720758417,44.46945844,201.31,201.3,0.72]
[1756720758621,40.92,201.31,201.29,0.12]
[1756720758920,40.92,201.31,201.29,0.84]
[1756720759251,44.44945844,201.3,201.29,0.84]
[1756720760951,44.44945844,201.3,201.29,0.12]
[1756720761156,40.9,201.3,201.29,0.12]
[1756720761340,58.71505245,201.3,201.29,0.12]
[1756720761521,55.16559401,201.3,201.29,0.12]
[1756720761840,58.04505245,201.3,201.29,0.12]
[1756720762564,40.88,201.3,201.29,0.84]
[1756720762855,4.96851,201.31,201.29,5.80795667]
[1756720763027,3.54945844,201.3,201.29,5.08795667]
[1756720763228,44.40945844,201.3,201.29,5.08795667]
[1756720763722,40.86,201.3,201.29,0.84]
[1756720763926,44.40945844,201.3,201.29,0.12]
[1756720764132,40.86,201.3,201.29,0.12]
[1756720764342,44.40945844,201.3,201.29,0.12]
[1756720765253,44.40945844,201.3,201.29,0.84]
[1756720765831,40.86,201.3,201.29,5.80795667]
[1756720766032,44.40945844,201.3,201.29,5.80795667]
[1756720766232,44.40945844,201.3,201.29,0.84]
[1756720766443,3.54945844,201.3,201.29,0.84]
[1756720766643,44.34945844,201.3,201.29,5.80795667]
[1756720766846,40.8,201.3,201.29,0.84]
[1756720767044,13.59559401,201.34,201.29,5.80795218]
[1756720767225,13.59559401,201.34,201.3,0.72]
[1756720767426,41.22,201.33,201.31,4.96746311]
[1756720767626,41.22,201.33,201.32,0.72]
[1756720767823,44.76945844,201.33,201.31,4.96746311]
[1756720768055,3.54945844,201.32,201.31,5.68746311]
[1756720768353,3.54945844,201.32,201.29,0.12]
[1756720768553,134.7,201.36,201.3,0.72]
[1756720768554,41.3,201.31,201.3,0.72]
[1756720768934,41.3,201.32,201.3,0.72]
[1756720769252,44.84945844,201.32,201.3,0.72]
[1756720769456,3.54945844,201.31,201.29,0.12]
[1756720769661,44.82945844,201.3,201.29,0.12]
[1756720770240,44.82945844,201.3,201.29,0.84]
[1756720770664,41.28,201.3,201.29,0.84]
[1756720771143,41.28,201.3,201.29,5.80795667]
[1756720771339,134.7,201.36,201.29,5.80795667]
[1756720771653,3.54945844,201.33,201.3,0.72]
[1756720771855,3.54945844,201.31,201.3,0.72]
[1756720772838,134.7,201.36,201.3,5.68770988]
[1756720773046,3.54945844,201.32,201.3,5.68770988]
[1756720773268,41.22,201.32,201.3,5.68770988]
[1756720773467,44.76945844,201.32,201.3,5.68770988]
[1756720773654,3.54945844,201.31,201.3,5.68770988]
[1756720773967,4.23945844,201.31,201.29,0.12]
[1756720774272,44.74945844,201.3,201.29,0.12]
[1756720774568,41.2,201.3,201.29,0.12]
[1756720774751,44.74945844,201.3,201.29,0.12]
[1756720775160,41.2,201.3,201.29,0.12]
[1756720775361,44.74945844,201.3,201.29,0.12]
[1756720776040,41.2,201.3,201.29,0.12]
[1756720776237,44.74945844,201.3,201.29,0.12]
[1756720779969,67.55222077,201.3,201.29,0.12]
[1756720780177,62.58451089,201.3,201.29,0.12]
[1756720780479,55.48559401,201.3,201.29,0.12]
[1756720780672,59.03505245,201.3,201.29,0.12]
[1756720782387,41.89,201.3,201.29,0.12]
[1756720782580,44.74945844,201.3,201.29,0.12]
[1756720783291,3.54945844,201.3,201.29,0.12]
[1756720783467,44.56945844,201.3,201.29,0.12]
[1756720784470,41.02,201.3,201.29,0.12]
[1756720784683,44.56945844,201.3,201.29,0.12]
[1756720785482,44.54945844,201.3,201.29,0.12]
[1756720785685,44.54945844,201.3,201.29,0.84]
[1756720785888,44.54945844,201.3,201.29,0.12]
[1756720786463,3.54945844,201.3,201.29,0.12]
[1756720786865,3.54945844,201.3,201.29,5.80795667]
[1756720787112,44.48945844,201.3,201.29,5.80795667]
[1756720787277,3.54945844,201.3,201.29,5.80795667]
[1756720787985,40.94,201.31,201.29,5.80795667]
[1756720788219,3.54945844,201.3,201.29,5.80795667]
[1756720788383,3.54945844,201.3,201.29,0.84]
[1756720789277,40.94,201.31,201.29,5.80793574]
[1756720789602,3.54945844,201.3,201.29,5.8079315]
[1756720790306,3.54945844,201.3,201.29,0.84]
[1756720790984,3.54945844,201.3,201.29,0.12]
[1756720791804,44.60945844,201.3,201.29,0.12]
[1756720792303,41.06,201.3,201.29,0.12]
[1756720792481,44.60945844,201.3,201.29,0.12]
[1756720792682,45.31945844,201.3,201.29,0.12]
[1756720793088,44.60945844,201.3,201.29,0.12]
[1756720793900,3.54945844,201.3,201.29,0.12]
[1756720794106,44.54945844,201.3,201.29,0.12]
[1756720794285,45.25945844,201.3,201.29,0.12]
[1756720794485,44.54945844,201.3,201.29,0.12]
[1756720796086,44.50945844,201.3,201.29,0.12]
[1756720796286,134.7,201.32,201.29,0.12]
[1756720796486,40.96,201.31,201.3,0.71]
[1756720796806,44.50945844,201.31,201.3,0.71]
[1756720797003,44.50945844,201.31,201.29,0.12]
[1756720797406,3.54945844,201.3,201.29,0.83]
[1756720797608,40.96,201.31,201.29,5.79795474]
[1756720797807,3.54945844,201.3,201.29,5.79795474]
[1756720798690,40.92,201.31,201.29,5.79795474]
[1756720798904,40.92,201.31,201.29,0.12]
[1756720799185,3.54945844,201.3,201.29,0.12]
[1756720799786,7.80891688,201.3,201.29,0.12]
[1756720800201,4.25945844,201.3,201.29,0.12]
[1756720800412,3.54945844,201.3,201.29,0.83]
[1756720800606,44.40945844,201.3,201.29,0.12]
[1756720801408,3.54945844,201.3,201.29,0.12]
[1756720801896,40.86,201.31,201.29,0.12]
[1756720802098,3.54945844,201.3,201.29,0.12]
[1756720802886,40.82,201.3,201.29,0.12]
[1756720803090,44.36945844,201.3,201.29,0.12]
[1756720803306,44.34945844,201.3,201.29,0.12]
[1756720804817,3.54945844,201.3,201.29,0.12]
[1756720805014,44.32945844,201.3,201.29,0.12]
[1756720805197,45.03945844,201.3,201.29,0.12]
[1756720805519,44.32945844,201.3,201.29,0.12]
[1756720805700,3.54945844,201.3,201.29,0.12]
[1756720805901,44.30945844,201.3,201.29,0.12]
[1756720806311,3.54945844,201.31,201.29,0.12]
[1756720806511,40.74,201.33,201.29,9.34736019]
[1756720806811,40.74,201.33,201.3,0.71]
[1756720807112,3.54945844,201.33,201.31,0.71]
[1756720807526,44.28945844,201.34,201.31,0.71]
[1756720807823,3.54945844,201.32,201.31,0.71]
[1756720808029,40.72,201.35,201.31,0.71]
[1756720808214,3.54945844,201.34,201.31,0.71]
[1756720808728,3.54945844,201.34,201.29,0.12]
[1756720808729,3.54945844,201.32,201.29,0.12]
[1756720808944,3.54945844,201.3,201.29,0.12]
[1756720809146,44.22945844,201.3,201.29,0.12]
[1756720810332,44.93945844,201.3,201.29,0.12]
[1756720810514,67.05222077,201.3,201.29,0.12]
[1756720811633,44.18945844,201.3,201.29,0.12]
[1756720811803,44.89945844,201.3,201.29,0.12]
[1756720812217,58.49505245,201.3,201.29,0.12]
[1756720812433,17.85505245,201.3,201.29,0.12]
[1756720812638,58.45505245,201.3,201.29,0.12]
[1756720813437,17.85505245,201.3,201.29,0.12]
[1756720813614,1.990793,201.33,201.29,0.12]
[1756720813615,0.71,201.32,201.29,0.12]
[1756720813814,3.54945844,201.3,201.29,0.12]
[1756720814252,0.71,201.37,201.29,0.83]
[1756720814435,3.54945844,201.34,201.29,5.79795667]
[1756720814639,3.54945844,201.33,201.3,0.71]
[1756720814857,3.54945844,201.33,201.31,0.71]
[1756720815147,40.56,201.34,201.31,0.71]
[1756720815351,40.56,201.34,201.31,4.96737798]
[1756720815528,3.54945844,201.35,201.32,0.71]
[1756720815728,40.56,201.35,201.33,0.71]
[1756720815940,40.56,201.35,201.31,4.96737798]
[1756720816246,40.56,201.35,201.32,0.71]
[1756720816418,40.56,201.35,201.33,0.71]
[1756720816626,3.54945844,201.36,201.31,9.22683642]
[1756720816825,44.10945844,201.36,201.32,0.71]
[1756720817116,3.54945844,201.35,201.33,0.71]
[1756720817335,3.54945844,201.35,201.32,4.9671823]
[1756720817533,3.54945844,201.35,201.32,5.6771823]
[1756720817747,44.10945844,201.36,201.33,0.71]
[1756720818120,44.06945844,201.36,201.33,0.71]
[1756720818460,40.52,201.41,201.35,3.54945844]
[1756720818749,40.52,201.41,201.37,3.54945844]
[1756720818926,40.52,201.41,201.38,0.71]
[1756720819130,40.52,201.41,201.37,3.54945844]
[1756720819131,40.52,201.41,201.39,0.71]
[1756720819331,40.52,201.41,201.39,5.67534644]
[1756720819536,3.54945844,201.42,201.36,4.96622963]
[1756720819725,3.54945844,201.42,201.38,3.54945844]
[1756720819726,40.5,201.42,201.38,3.54945844]
[1756720820049,49.42559401,201.46,201.39,4.25945844]
[1756720820050,44.02945844,201.44,201.39,4.25945844]
[1756720820238,3.57945844,201.43,201.39,0.71]
[1756720820443,3.54945844,201.42,201.4,0.71]
[1756720820844,0.03,201.43,201.37,3.54945844]
[1756720821040,3.57945844,201.43,201.41,0.71]
[1756720821353,3.54945844,201.42,201.39,5.67548984]
[1756720821561,3.54945844,201.41,201.39,0.71]
[1756720821857,3.54945844,201.4,201.37,0.71]
[1756720822238,3.54945844,201.4,201.36,4.96618913]
[1756720822441,0.14216157,201.36,201.3,14.92129]
[1756720822646,3.54945844,201.31,201.29,0.12]
[1756720822855,3.54945844,201.3,201.29,0.12]
[1756720825452,9.17716832,201.3,201.29,0.12]
[1756720826337,0.66,201.3,201.29,0.12]
[1756720826659,3.54945844,201.3,201.29,0.12]
[1756720826967,46.10727041,201.32,201.29,0.12]
[1756720827126,3.54945844,201.3,201.29,0.12]
[1756720828331,43.94945844,201.3,201.29,0.12]
[1756720829349,40.4,201.3,201.29,0.12]
[1756720829653,43.94945844,201.3,201.29,0.12]
[1756720830958,3.54945844,201.3,201.29,0.12]
[1756720831363,49.49716832,201.3,201.29,0.12]
[1756720831548,61.67451089,201.3,201.29,0.12]
[1756720831744,43.86945844,201.3,201.29,0.12]
[1756720833652,43.84945844,201.3,201.29,0.12]
[1756720834671,44.50945844,201.3,201.29,0.12]
[1756720834869,43.84945844,201.3,201.29,0.12]
[1756720837760,40.3,201.3,201.29,0.12]
[1756720838068,43.84945844,201.3,201.29,0.12]
[1756720838240,40.3,201.3,201.29,0.12]
[1756720838445,43.84945844,201.3,201.29,0.12]
[1756720839265,3.54945844,201.31,201.29,0.8]
[1756720839570,3.54945844,201.31,201.3,0.68]
[1756720841675,3.54945844,201.31,201.29,5.08795227]
[1756720841881,3.54945844,201.3,201.29,5.08795227]
[1756720842254,40.22,201.33,201.29,5.08795227]
[1756720842464,40.22,201.33,201.3,0.68]
[1756720843274,40.22,201.33,201.3,5.64764266]
[1756720843445,0.66,201.35,201.3,5.64764266]
[1756720843763,3.54945844,201.33,201.31,0.68]
[1756720844072,3.54945844,201.33,201.3,4.96764266]
[1756720844269,3.54945844,201.33,201.32,0.68]
[1756720845374,3.54945844,201.33,201.3,4.96768931]
[1756720845679,3.54945844,201.31,201.3,0.68]
[1756720845980,0.66,201.35,201.3,0.68]
[1756720846276,3.54945844,201.32,201.3,0.68]
[1756720846465,3.54945844,201.32,201.31,0.68]
[1756720846966,3.54945844,201.32,201.29,0.8]
[1756720847295,3.54945844,201.32,201.3,0.68]
[1756720847584,3.54945844,201.32,201.31,0.68]
[1756720847955,40.72,201.35,201.31,0.68]
[1756720848155,3.54945844,201.33,201.31,0.68]
[1756720848977,40.72,201.35,201.31,0.68]
[1756720849167,3.54945844,201.33,201.31,0.68]
[1756720849655,3.54945844,201.33,201.3,4.96760563]
[1756720849856,3.54945844,201.33,201.3,5.64760563]
[1756720850071,3.54945844,201.33,201.29,5.08789134]
[1756720850275,3.54945844,201.33,201.3,0.68]
[1756720851193,3.54945844,201.32,201.3,0.68]
[1756720851357,4.20945844,201.31,201.29,0.12]
[1756720851661,3.54945844,201.3,201.29,0.12]
[1756720852996,39.96,201.32,201.29,0.12]
[1756720853196,43.50945844,201.32,201.29,5.77795394]
[1756720853402,43.46945844,201.33,201.3,0.69]
[1756720853572,3.54945844,201.33,201.29,5.08795394]
[1756720853778,39.92,201.34,201.3,0.69]
[1756720854003,43.46945844,201.34,201.3,0.69]
[1756720854198,3.54945844,201.33,201.31,0.69]
[1756720854402,3.54945844,201.34,201.31,0.69]
[1756720854573,3.54945844,201.33,201.31,0.69]
[1756720856077,3.54945844,201.33,201.31,5.65740978]
[1756720856277,3.54945844,201.32,201.29,0.81]
[1756720856477,3.54945844,201.32,201.3,0.69]
[1756720856678,3.54945844,201.32,201.29,5.08783578]
[1756720857381,3.54945844,201.32,201.29,5.77783578]
[1756720858210,3.54945844,201.32,201.3,0.69]
[1756720859087,3.54945844,201.32,201.31,0.12]
[1756720860004,53.43559401,201.36,201.31,5.77728818]
[1756720860213,3.54945844,201.35,201.32,0.69]
[1756720860987,0.66,201.4,201.32,4.23945844]
[1756720861195,53.39559401,201.39,201.33,0.69]
[1756720861505,43.34945844,201.4,201.35,4.96647628]
[1756720861807,43.34945844,201.4,201.36,0.69]
[1756720862005,43.34945844,201.4,201.37,0.69]
[1756720862209,44.00945844,201.4,201.35,5.65647628]
[1756720862510,4.20945844,201.39,201.35,4.96647628]
[1756720862710,3.54945844,201.39,201.36,0.69]
[1756720862882,39.8,201.4,201.37,0.69]
[1756720862883,3.54945844,201.4,201.37,0.69]
[1756720863089,3.54945844,201.42,201.38,0.69]
[1756720863289,3.57945844,201.43,201.39,0.69]
[1756720863492,3.57945844,201.43,201.41,4.96499677]
[1756720863993,0.03,201.43,201.41,4.96499677]
[1756720864223,0.03,201.43,201.42,0.69]
[1756720865619,0.03,201.43,201.42,5.65475027]
[1756720865802,4.23945844,201.43,201.37,4.96598301]
[1756720865998,3.54945844,201.4,201.36,116.0]
[1756720866223,3.54945844,201.4,201.36,0.69]
[1756720866593,3.54945844,201.4,201.37,0.69]
[1756720868126,3.54945844,201.4,201.37,5.65597493]
[1756720868310,3.54945844,201.42,201.38,0.69]
[1756720870018,3.54945844,201.42,201.38,5.65573555]
[1756720870207,3.54945844,201.42,201.38,4.96573555]
[1756720870419,3.54945844,201.42,201.38,0.69]
[1756720870731,3.54945844,201.42,201.38,5.65567542]
[1756720870906,3.54945844,201.42,201.38,4.96567542]
[1756720871100,0.03,201.43,201.39,0.69]
[1756720871300,0.03,201.43,201.4,0.69]
[1756720871496,0.03,201.43,201.4,4.23945844]
[1756720871696,0.03,201.43,201.41,3.54945844]
[1756720871896,0.03,201.43,201.42,4.96475027]
[1756720872106,0.03,201.43,201.42,5.65475027]
[1756720872806,4.23945844,201.43,201.36,5.65622963]
[1756720873015,3.54945844,201.42,201.36,4.96622963]
[1756720873215,3.54945844,201.41,201.36,18.07180372]
[1756720873411,4.20945844,201.41,201.36,18.07180372]
[1756720873616,3.54945844,201.41,201.37,0.69]
[1756720874005,4.20945844,201.41,201.38,4.96573641]
[1756720875122,3.54945844,201.39,201.36,4.96622963]
[1756720875307,39.74,201.42,201.33,16.65663466]
[1756720875308,3.54945844,201.37,201.34,4.96672295]
[1756720875505,4.20945844,201.37,201.34,4.96672295]
[1756720875721,3.54945844,201.37,201.34,5.65672295]
[1756720876026,3.54945844,201.38,201.34,5.65672295]
[1756720876731,3.54945844,201.39,201.35,0.69]
[1756720876920,53.33559401,201.42,201.36,4.23945844]
[1756720877223,3.54945844,201.39,201.34,17.38353034]
[1756720877427,4.20945844,201.39,201.34,4.96672295]
[1756720877612,4.20945844,201.39,201.34,5.65672295]
[1756720877810,3.54945844,201.38,201.34,5.65672295]
[1756720878404,4.20945844,201.39,201.34,5.65672295]
[1756720879118,3.54945844,201.41,201.35,4.23945844]
[1756720879304,13.59559401,201.42,201.34,4.96672295]
[1756720879305,3.54945844,201.42,201.36,4.23945844]
[1756720879504,3.54945844,201.42,201.37,0.69]
[1756720879713,3.54945844,201.42,201.38,0.69]
[1756720879912,0.03,201.43,201.38,0.69]
[1756720880116,3.54945844,201.42,201.38,0.69]
[1756720880337,4.20945844,201.42,201.36,4.23945844]
[1756720880758,3.54945844,201.41,201.36,0.69]
[1756720881037,3.54945844,201.39,201.34,18.07353034]
[1756720881209,3.54945844,201.39,201.35,0.69]
[1756720881635,3.54945844,201.39,201.34,4.96672295]
[1756720881636,4.20945844,201.39,201.34,4.96672295]
[1756720881940,4.20945844,201.39,201.35,0.67]
[1756720882105,3.54945844,201.39,201.35,0.67]
[1756720882732,3.54945844,201.4,201.34,8.51618139]
[1756720882938,3.54945844,201.41,201.36,4.96622963]
[1756720883163,3.54945844,201.41,201.37,0.67]
[1756720883666,4.26945844,201.4,201.36,4.96622963]
[1756720884959,3.54945844,201.4,201.35,4.96647628]
[1756720885267,4.26945844,201.39,201.35,4.96647628]
[1756720885774,4.26945844,201.39,201.35,5.63647628]
[1756720885942,4.26945844,201.39,201.35,4.96647628]
[1756720886359,3.54945844,201.39,201.35,5.63647628]
[1756720886559,3.04945844,201.39,201.35,5.63647628]
[1756720886954,0.72,201.38,201.34,4.96672295]
[1756720887154,3.54945844,201.4,201.35,0.67]
[1756720887568,3.54945844,201.4,201.34,17.38353034]
[1756720887748,3.54945844,201.4,201.35,4.21945844]
[1756720887949,3.54945844,201.39,201.35,0.67]
[1756720889075,3.54945844,201.39,201.36,4.96622963]
[1756720889546,0.72,201.4,201.36,4.96622963]
[1756720889746,4.26945844,201.4,201.36,4.96622963]
[1756720889965,3.54945844,201.4,201.36,0.67]
[1756720890148,4.26945844,201.4,201.36,0.67]
[1756720890347,3.54945844,201.39,201.35,4.96647628]
[1756720890567,3.54945844,201.39,201.35,5.63647628]
[1756720890765,13.59559401,201.35,201.31,0.12]
[1756720890943,3.54945844,201.32,201.31,0.12]
[1756720891561,3.54945844,201.33,201.31,0.12]
[1756720892161,0.72,201.33,201.31,0.12]
[1756720892380,4.26945844,201.33,201.31,0.12]
[1756720893184,3.54945844,201.32,201.31,0.12]
[1756720894276,13.59559401,201.35,201.31,5.08746311]
[1756720894456,3.54945844,201.34,201.33,0.12]
[1756720894987,14.31559401,201.34,201.33,0.12]
[1756720895150,18.00721402,201.34,201.33,0.12]
[1756720895566,19.99790702,201.34,201.33,0.12]
[1756720896174,28.51408841,201.34,201.33,0.12]
[1756720896477,28.51408841,201.34,201.31,0.12]
[1756720896478,13.73775558,201.32,201.31,0.12]
[1756720896674,39.59559401,201.3,201.29,0.12]
[1756720896875,46.69451089,201.3,201.29,0.12]
[1756720897053,47.41451089,201.3,201.29,0.12]
[1756720897383,13.59559401,201.29,201.28,0.12]
[1756720897676,43.14505245,201.29,201.28,0.12]
[1756720897880,43.86505245,201.29,201.28,0.12]
[1756720898181,48.83300912,201.29,201.28,0.12]
[1756720898598,83.60505245,201.29,201.28,0.12]
[1756720899098,14.31559401,201.29,201.28,0.12]
[1756720899258,17.14505245,201.29,201.28,0.12]
[1756720899457,56.88505245,201.29,201.28,0.12]
[1756720899772,62.57300912,201.29,201.28,0.12]
[1756720899981,56.88505245,201.29,201.28,0.12]
[1756720900163,53.33559401,201.29,201.28,0.12]
[1756720900666,39.74,201.29,201.28,0.12]
[1756720900893,43.28945844,201.29,201.28,0.12]
[1756720901077,39.74,201.29,201.28,0.12]
[1756720901264,43.28945844,201.29,201.28,0.12]
[1756720901471,43.28945844,201.29,201.28,5.08820349]
[1756720902080,39.74,201.29,201.28,5.08820349]
[1756720902391,3.54945844,201.3,201.28,5.75820349]
[1756720902700,39.74,201.33,201.29,0.67]
[1756720903190,39.74,201.33,201.3,0.67]
[1756720903501,39.74,201.33,201.28,8.63766193]
[1756720903502,39.74,201.33,201.31,0.67]
[1756720903681,14.31559401,201.37,201.29,3.54945844]
[1756720903885,43.28945844,201.36,201.32,0.67]
[1756720904202,39.74,201.36,201.32,0.67]
[1756720904366,3.54945844,201.35,201.32,5.6369997]
[1756720904771,39.74,201.36,201.32,5.6369997]
[1756720905221,3.54945844,201.35,201.32,5.6369997]
[1756720905697,4.96553065,201.39,201.28,12.54050874]
[1756720905698,14.925744,201.41,201.34,3.54945844]
[1756720905898,13.59559401,201.42,201.35,4.21945844]
[1756720906107,53.33559401,201.4,201.36,0.67]
[1756720906397,3.54945844,201.37,201.32,0.67]
[1756720906603,3.54945844,201.37,201.33,0.67]
[1756720906774,43.28945844,201.37,201.33,0.67]
[1756720906977,43.28945844,201.37,201.31,8.51692155]
[1756720906978,3.54945844,201.34,201.31,4.96746311]
[1756720907384,13.59559401,201.31,201.28,0.12]
[1756720907587,3.54945844,201.29,201.28,0.12]
[1756720907981,43.28945844,201.29,201.28,0.12]
[1756720908397,44.00945844,201.29,201.28,0.12]
[1756720909001,57.60505245,201.29,201.28,0.12]
[1756720909224,83.74721402,201.29,201.28,0.12]
[1756720910488,82.88505245,201.29,201.28,0.12]
[1756720910695,83.60505245,201.29,201.28,0.12]
[1756720910903,80.05559401,201.29,201.28,0.12]
[1756720911410,43.86505245,201.29,201.28,0.12]
[1756720911615,83.60505245,201.29,201.28,0.12]
[1756720911820,82.88505245,201.29,201.28,0.12]
[1756720911996,43.14505245,201.29,201.28,0.12]
[1756720912191,82.88505245,201.29,201.28,0.12]
[1756720912510,80.00559401,201.29,201.28,0.12]
[1756720912716,83.55505245,201.29,201.28,0.12]
[1756720913417,80.00559401,201.29,201.28,0.12]
[1756720913623,83.55505245,201.29,201.28,0.12]
[1756720913797,88.66517069,201.29,201.28,0.12]
[1756720914995,85.11571225,201.29,201.28,0.12]
[1756720915196,88.66517069,201.29,201.28,0.12]
[1756720916223,62.66517069,201.29,201.28,0.12]
[1756720917809,64.65665769,201.29,201.26,0.12]
[1756720918117,18.70694659,201.24,201.23,0.12]
[1756720918318,39.59559401,201.2,201.13,0.67]
[1756720918518,13.59559401,201.18,201.13,5.64188158]
[1756720918717,3.54945844,201.16,201.14,0.67]
[1756720918918,3.54945844,201.16,201.15,0.67]
[1756720919216,43.28945844,201.17,201.15,0.67]